fUST/lending_fUST_20251127
["ID","MTS","AMOUNT","RATE_DAILY","PERIOD"]
[394951876,1764195032596,-520.09718331,9.428e-05,2]
[394951877,1764195032605,-520.09718331,9.428e-05,2]
[394951878,1764195032615,-520.09718331,9.428e-05,2]
[394951879,1764195032625,-520.09718331,9.428e-05,2]
[394951880,1764195032634,-501.60483902,9.428e-05,2]
[394951881,1764195032643,-501.60483902,9.428e-05,2]
[394951882,1764195032653,-501.60483902,9.428e-05,2]
[394951883,1764195032665,-501.60483902,9.428e-05,2]
[394951884,1764195032675,-501.60483902,9.428e-05,2]
[394951885,1764195032684,-501.60483902,9.428e-05,2]
[394951886,1764195032693,-501.60483902,9.428e-05,2]
[394951887,1764195032703,-501.60483902,9.428e-05,2]
[394951888,1764195032712,-501.60483902,9.428e-05,2]
[394951889,1764195032722,-501.60483902,9.428e-05,2]
[394951890,1764195032731,-501.60483902,9.428e-05,2]
[394951891,1764195032741,-501.60483902,9.428e-05,2]
[394951892,1764195032750,-501.60483902,9.428e-05,2]
[394951893,1764195032759,-501.60483902,9.428e-05,2]
[394951894,1764195032770,-23635.65309587,9.429e-05,2]
[394951895,1764195032787,-4881.79727345,9.429e-05,2]
[394951896,1764195032796,-2263.2562248,9.66e-05,2]
[394951897,1764195032806,-3697.54650175,9.904e-05,2]
[394951898,1764195032816,-557.31285843,9.904e-05,2]
[394951899,1764195032826,-399.31199085,9.951e-05,2]
[394951900,1764195032857,-597.21929559,9.951e-05,2]
[394951925,1764195037628,-3.46871356,9.951e-05,2]
[394951926,1764195037639,-886.31128644,9.951e-05,2]
[394951927,1764195037653,-113.68871356,9.951e-05,2]
[394951928,1764195037664,-162836.40088932,9.975e-05,2]
[394951966,1764195039846,-505.2544,9.975e-05,2]
[394952145,1764195044571,-2328.76808358,9.975e-05,2]
[394952166,1764195046058,-13885.67059042,9.975e-05,2]
[394952167,1764195046070,-500.0,9.975e-05,2]
[394952587,1764196231836,-160.33809849,8.356e-05,2]
[394952589,1764196231845,-160.33809849,8.44e-05,2]
[394952591,1764196231855,-220.0,8.44e-05,2]
[394952593,1764196231864,-154.21232617,8.766e-05,2]
[394952595,1764196231873,-79.44207306,9.776e-05,2]
[394952759,1764196239932,-261.45075877,9.176e-05,2]
[394952761,1764196239945,-88.23692694,9.776e-05,2]
[394952763,1764196239955,-500.0,9.853e-05,2]
[394952765,1764196239964,-300.0,9.871e-05,2]
[394952767,1764196239973,-40.68231514,9.871e-05,2]
[394952772,1764196240025,-259.31768486,9.871e-05,2]
[394952774,1764196240034,-300.0,9.871e-05,2]
[394952776,1764196240043,-1065.0,9.871e-05,2]
[394952778,1764196240053,-9390.17098064,9.875e-05,2]
[394953481,1764196456003,520.0,0.00014,10]
[394953511,1764197437907,-167.679,9.291e-05,2]
[394953512,1764197437927,-227.0,9.385e-05,2]
[394953513,1764197437938,-151.12807965,9.433e-05,2]
[394953514,1764197437948,-167.679,9.48e-05,2]
[394953515,1764197437957,-42780.5833021,9.674e-05,2]
[394953516,1764197437969,-994.06474417,9.674e-05,2]
[394953528,1764197440189,-498.04,9.674e-05,2]
[394953529,1764197440200,-21468.48882774,9.674e-05,2]
[394953540,1764197444476,-55635.02546731,9.674e-05,2]
[394953736,1764198632730,-152.5107836,8.236e-05,2]
[394953737,1764198632739,-219.0,8.236e-05,2]
[394953738,1764198632749,-152.5107836,8.319e-05,2]
[394953739,1764198632761,-150.0,8.361e-05,2]
[394953740,1764198632770,-152.5107836,8.403e-05,2]
[394953741,1764198632779,-501.46867833,8.993e-05,2]
[394953742,1764198632789,-500.0,8.993e-05,2]
[394953743,1764198632799,-258.86741491,8.993e-05,2]
[394953744,1764198632809,-500.0,8.993e-05,2]
[394953745,1764198632818,-502.10980136,8.993e-05,2]
[394953746,1764198632827,-500.0,8.993e-05,2]
[394953747,1764198632842,-500.0,8.993e-05,2]
[394953748,1764198632851,-500.0,8.993e-05,2]
[394953749,1764198632862,-500.0,8.993e-05,2]
[394953750,1764198632872,-500.0,8.993e-05,2]
[394953751,1764198632881,-271.0,9.011e-05,2]
[394953752,1764198632891,-194.26224414,9.014e-05,2]
[394953753,1764198632900,-11061.25177334,9.015e-05,2]
[394953754,1764198632911,-167.68,9.287e-05,2]
[394953755,1764198632920,-501.35121122,9.453e-05,2]
[394953756,1764198632929,-500.0,9.475e-05,2]
[394953757,1764198632938,-56463.71680023,9.477e-05,2]
[394953758,1764198632953,-2860.344009,9.477e-05,2]
[394953763,1764198638130,-500.0,8.993e-05,2]
[394953764,1764198638142,-12086.91131874,9.477e-05,2]
[394953765,1764198638255,-500.0,9.477e-05,2]
[394953855,1764199225795,719.0,8.052e-05,2]
[394953856,1764199241273,719.0,8.052e-05,2]
[394953857,1764199248995,719.0,8.052e-05,2]
[394953858,1764199263833,719.0,8.052e-05,2]
[394953859,1764199271577,719.0,8.052e-05,2]
[394953860,1764199286432,719.0,8.052e-05,2]
[394953861,1764199294152,719.0,8.052e-05,2]
[394953862,1764199309405,719.0,8.052e-05,2]
[394953863,1764199317122,719.0,8.052e-05,2]
[394953875,1764199332052,508.23569467,8.052e-05,2]
[394953901,1764199522607,210.76430533,7.812e-05,2]
[394953903,1764199530597,210.76430533,7.812e-05,2]
[394953904,1764199546062,210.76430533,7.812e-05,2]
[394953908,1764199554104,210.76430533,7.812e-05,2]
[394953910,1764199569616,210.76430533,7.812e-05,2]
[394953911,1764199577730,210.76430533,7.812e-05,2]
[394953912,1764199593300,210.76430533,7.812e-05,2]
[394953916,1764199600303,210.76430533,7.812e-05,2]
[394953918,1764199609683,210.76430533,7.812e-05,2]
[394953919,1764199617834,150.0,7.852e-05,2]
[394953920,1764199625986,150.0,7.852e-05,2]
[394953921,1764199633840,150.0,7.852e-05,2]
[394953923,1764199641682,150.0,7.852e-05,2]
[394953952,1764199649858,150.0,7.852e-05,2]
[394953953,1764199657851,150.0,7.852e-05,2]
[394953955,1764199665574,150.0,7.852e-05,2]
[394953956,1764199673544,150.0,7.852e-05,2]
[394953958,1764199681298,150.0,7.852e-05,2]
[394953959,1764199696812,150.0,7.852e-05,2]
[394953960,1764199704595,150.0,7.852e-05,2]
[394953981,1764199719710,150.0,7.852e-05,2]
[394953983,1764199727438,150.0,7.852e-05,2]
[394953991,1764199742468,150.0,7.852e-05,2]
[394953993,1764199750335,150.0,7.852e-05,2]
[394953994,1764199765409,150.0,7.852e-05,2]
[394953995,1764199773154,150.0,7.852e-05,2]
[394953996,1764199788044,150.0,7.852e-05,2]
[394953997,1764199796114,150.0,7.852e-05,2]
[394953998,1764199811294,367.0,7.852e-05,2]
[394953999,1764199819078,367.0,7.852e-05,2]
[394954034,1764199832337,-150.0,7.931e-05,2]
[394954036,1764199832346,-217.0,7.931e-05,2]
[394954038,1764199832356,-257.06465336,8.042e-05,2]
[394954073,1764199834120,367.0,7.852e-05,2]
[394954088,1764199838276,-142.91308502,8.042e-05,2]
[394954089,1764199838286,-457.11741529,8.042e-05,2]
[394954090,1764199838295,-244.98949969,8.42e-05,2]
[394954091,1764199838318,-157.94605726,8.42e-05,2]
[394954092,1764199838327,-405.07789571,8.465e-05,2]
[394954093,1764199838337,-342.76361762,8.465e-05,2]
[394954094,1764199838348,-386.37659466,8.465e-05,2]
[394954095,1764199838357,-1296.24926628,8.465e-05,2]
[394954096,1764199838366,-228.74987052,8.5e-05,2]
[394954097,1764199838375,-151.0,8.633e-05,2]
[394954098,1764199838385,-500.0,8.633e-05,2]
[394954099,1764199838394,-500.0,8.633e-05,2]
[394954100,1764199838403,-500.0,8.633e-05,2]
[394954101,1764199838413,-373.06533201,8.633e-05,2]
[394954102,1764199838422,-500.0,8.633e-05,2]
[394954103,1764199838431,-500.0,8.633e-05,2]
[394954104,1764199838441,-228.10046448,8.633e-05,2]
[394954105,1764199838450,-500.0,8.633e-05,2]
[394954106,1764199838459,-170.95221363,8.633e-05,2]
[394954107,1764199838468,-500.0,8.633e-05,2]
[394954108,1764199838478,-500.0,8.633e-05,2]
[394954109,1764199838487,-17.94789503,8.633e-05,2]
[394954110,1764199838499,-482.05210497,8.633e-05,2]
[394954111,1764199838508,-104.84507426,8.633e-05,2]
[394954112,1764199838519,-307.8364998,8.633e-05,2]
[394954140,1764199840555,-150.0,8.231e-05,2]
[394954142,1764199840565,-87.31842594,8.633e-05,2]
[394954144,1764199840574,-500.0,8.633e-05,2]
[394954146,1764199840584,-500.0,8.633e-05,2]
[394954148,1764199840593,-500.0,8.633e-05,2]
[394954150,1764199840604,-500.0,8.633e-05,2]
[394954152,1764199840613,-500.0,8.633e-05,2]
[394954154,1764199840622,-500.0,8.633e-05,2]
[394954155,1764199840631,-500.0,8.633e-05,2]
[394954157,1764199840640,-500.0,8.633e-05,2]
[394954159,1764199840650,-500.0,8.633e-05,2]
[394954161,1764199840660,-500.0,8.633e-05,2]
[394954163,1764199840669,-500.0,8.633e-05,2]
[394954165,1764199840678,-500.0,8.633e-05,2]
[394954167,1764199840687,-500.0,8.633e-05,2]
[394954170,1764199840697,-500.0,8.633e-05,2]
[394954173,1764199840706,-500.0,8.633e-05,2]
[394954175,1764199840716,-378.97281249,8.633e-05,2]
[394954177,1764199840727,-500.0,8.633e-05,2]
[394954179,1764199840736,-500.0,8.633e-05,2]
[394954181,1764199840745,-500.0,8.633e-05,2]
[394954182,1764199840754,-500.0,8.633e-05,2]
[394954183,1764199840763,-500.0,8.633e-05,2]
[394954184,1764199840772,-500.0,8.633e-05,2]
[394954185,1764199840783,-500.0,8.633e-05,2]
[394954186,1764199840792,-500.0,8.633e-05,2]
[394954187,1764199840942,-500.0,8.633e-05,2]
[394954188,1764199840952,-500.0,8.633e-05,2]
[394954189,1764199840961,-500.0,8.633e-05,2]
[394954190,1764199840971,-500.0,8.633e-05,2]
[394954191,1764199840980,-500.0,8.633e-05,2]
[394954192,1764199840989,-500.0,8.633e-05,2]
[394954193,1764199840998,-500.0,8.633e-05,2]
[394954194,1764199841008,-500.0,8.633e-05,2]
[394954195,1764199841018,-500.0,8.633e-05,2]
[394954196,1764199841027,-500.0,8.633e-05,2]
[394954197,1764199841037,-500.0,8.633e-05,2]
[394954198,1764199841046,-500.0,8.633e-05,2]
[394954199,1764199841058,-500.0,8.633e-05,2]
[394954200,1764199841067,-500.0,8.633e-05,2]
[394954201,1764199841078,-500.0,8.633e-05,2]
[394954202,1764199841088,-500.0,8.633e-05,2]
[394954203,1764199841097,-500.0,8.633e-05,2]
[394954204,1764199841106,-500.0,8.633e-05,2]
[394954205,1764199841116,-500.0,8.633e-05,2]
[394954206,1764199841124,-500.0,8.633e-05,2]
[394954207,1764199841135,-500.0,8.633e-05,2]
[394954208,1764199841144,-500.0,8.633e-05,2]
[394954209,1764199841153,-500.0,8.633e-05,2]
[394954210,1764199841163,-500.0,8.633e-05,2]
[394954211,1764199841172,-500.0,8.633e-05,2]
[394954212,1764199841182,-593.00000001,8.633e-05,2]
[394954213,1764199841192,-500.0,8.633e-05,2]
[394954214,1764199841203,-500.0,8.633e-05,2]
[394954215,1764199841212,-500.0,8.633e-05,2]
[394954216,1764199841222,-500.0,8.633e-05,2]
[394954217,1764199841231,-500.0,8.633e-05,2]
[394954218,1764199841241,-300.0,8.634e-05,2]
[394954219,1764199841250,-300.0,8.634e-05,2]
[394954220,1764199841260,-300.0,8.634e-05,2]
[394954221,1764199841269,-300.0,8.634e-05,2]
[394954222,1764199841278,-300.0,8.634e-05,2]
[394954223,1764199841288,-300.0,8.634e-05,2]
[394954224,1764199841297,-300.0,8.634e-05,2]
[394954225,1764199841306,-300.0,8.634e-05,2]
[394954226,1764199841315,-300.0,8.634e-05,2]
[394954227,1764199841325,-300.0,8.634e-05,2]
[394954228,1764199841335,-300.0,8.634e-05,2]
[394954229,1764199841344,-300.0,8.634e-05,2]
[394954230,1764199841353,-300.0,8.634e-05,2]
[394954231,1764199841363,-300.0,8.634e-05,2]
[394954232,1764199841372,-300.0,8.634e-05,2]
[394954233,1764199841381,-600.0,8.806e-05,2]
[394954234,1764199841391,-914.0844826,8.863e-05,2]
[394954235,1764199841400,-424.1274135,8.983e-05,2]
[394954236,1764199841409,-167.68,8.983e-05,2]
[394954237,1764199841418,-500.0,9.353e-05,2]
[394954238,1764199841428,-195.62038484,9.353e-05,2]
[394954239,1764199841437,-151.0,9.353e-05,2]
[394954240,1764199841447,-12841.44892281,9.377e-05,2]
[394954252,1764199846452,-150.0,8.149e-05,2]
[394954253,1764199846462,-2010.2380269,9.377e-05,2]
[394954254,1764199846474,-18431.8608748,9.377e-05,2]
[394954255,1764199846623,-8871.08988407,9.377e-05,2]
[394954303,1764200824248,387.68012804,7.89e-05,2]
[394954304,1764200847136,387.68012804,7.89e-05,2]
[394954306,1764200869002,387.68012804,7.89e-05,2]
[394954308,1764200890923,387.68012804,7.89e-05,2]
[394954309,1764200913436,387.68012804,7.89e-05,2]
[394954311,1764200936363,387.68012804,7.89e-05,2]
[394954312,1764200958259,387.68012804,7.89e-05,2]
[394954313,1764200980202,387.68012804,7.89e-05,2]
[394954314,1764201002160,387.68012804,7.89e-05,2]
[394954315,1764201017528,604.68012804,7.89e-05,2]
[394954316,1764201026223,217.0,7.89e-05,2]
[394954347,1764201032647,-217.0,7.97e-05,2]
[394954349,1764201032657,-150.0,8.092e-05,2]
[394954351,1764201032666,-167.68012804,8.725e-05,2]
[394954353,1764201032675,-500.0,8.783e-05,2]
[394954355,1764201032684,-500.0,8.783e-05,2]
[394954356,1764201032694,-33689.11636125,8.802e-05,2]
[394954357,1764201032703,-287327.91725613,8.804e-05,2]
[394954566,1764201038603,-500.0,8.801e-05,2]
[394954568,1764201038613,-500.0,8.801e-05,2]
[394954570,1764201038623,-500.0,8.801e-05,2]
[394954571,1764201038634,-500.0,8.801e-05,2]
[394954573,1764201038644,-224.19728125,8.801e-05,2]
[394954575,1764201038654,-500.0,8.801e-05,2]
[394954578,1764201038664,-500.0,8.801e-05,2]
[394954579,1764201038673,-500.0,8.801e-05,2]
[394954581,1764201038684,-2048.14013834,8.804e-05,2]
[394954782,1764201040830,-2805.93710947,8.804e-05,2]
[394954784,1764201040841,-4839.90170282,8.804e-05,2]
[394955271,1764201045747,-423.01,8.713e-05,2]
[394955319,1764201046863,-656.16275011,8.713e-05,2]
[394955347,1764201371954,481.13,0.000215,120]
[394955348,1764201425590,5000.0,0.00014,10]
[394955349,1764201433590,5000.0,0.00014,10]
[394955350,1764201448672,5000.0,0.00014,10]
[394955351,1764201456428,5000.0,0.00014,10]
[394955393,1764202231707,-371.0,8.225e-05,2]
[394955396,1764202231717,-219.0,8.225e-05,2]
[394955398,1764202231726,-150.0,8.33e-05,2]
[394955400,1764202231736,-300.0,8.682e-05,2]
[394955402,1764202231746,-1171.0,8.682e-05,2]
[394955404,1764202231755,-500.0,8.683e-05,2]
[394955406,1764202231765,-500.0,8.683e-05,2]
[394955408,1764202231776,-188.24606712,8.683e-05,2]
[394955410,1764202231785,-500.0,8.683e-05,2]
[394955412,1764202231795,-500.0,8.683e-05,2]
[394955413,1764202231804,-500.0,8.683e-05,2]
[394955414,1764202231814,-500.0,8.683e-05,2]
[394955415,1764202231823,-500.0,8.683e-05,2]
[394955416,1764202231832,-500.0,8.683e-05,2]
[394955417,1764202231841,-500.0,8.683e-05,2]
[394955418,1764202231850,-500.0,8.683e-05,2]
[394955419,1764202231859,-185.29544837,8.683e-05,2]
[394955420,1764202231869,-724.42239873,8.7e-05,2]
[394955421,1764202231880,-500.0,8.703e-05,2]
[394955422,1764202231889,-134700.77665764,8.704e-05,2]
[394955423,1764202231901,-1027.6,8.704e-05,2]
[394955424,1764202231911,-282.34546992,8.704e-05,2]
[394955425,1764202231923,-17294.66422918,8.704e-05,2]
[394955427,1764202231943,-2142.36770735,8.704e-05,2]
[394955442,1764202237926,-2193.4165003,8.704e-05,2]
[394955443,1764202240191,-4576.01192515,8.704e-05,2]
[394955499,1764202245950,-6021.99999998,8.704e-05,2]
[394955500,1764202246017,-2253.49425417,8.704e-05,2]
[394955501,1764202246029,-641.0,8.704e-05,2]
[394955502,1764202369074,6530.0,7.89e-05,2]
[394955508,1764203036239,5081.54879459,7.872e-05,2]
[394955515,1764203222104,5081.54879459,7.872e-05,2]
[394955710,1764203437923,-217.0,7.992e-05,2]
[394955711,1764203437935,-150.0,8.032e-05,2]
[394955712,1764203437945,-500.0,8.583e-05,2]
[394955713,1764203437954,-500.0,8.583e-05,2]
[394955714,1764203437963,-500.0,8.583e-05,2]
[394955715,1764203437971,-410.78,8.604e-05,2]
[394955716,1764203437995,-4517.16837286,8.604e-05,2]
[394955719,1764203440148,-366.39040813,7.912e-05,2]
[394955720,1764203440165,-0.60959187,7.912e-05,2]
[394955721,1764203440175,-2279.61136702,8.604e-05,2]
[394955776,1764204618078,257.21052427,7.863e-05,2]
[394955840,1764204638125,-257.21052427,7.943e-05,2]
[394955841,1764204638135,-150.0,7.943e-05,2]
[394955842,1764204638145,-217.0,7.943e-05,2]
[394955843,1764204638155,-500.0,8.483e-05,2]
[394955844,1764204638165,-500.0,8.483e-05,2]
[394955845,1764204638175,-1058.0,8.502e-05,2]
[394955846,1764204638185,-300.0,8.502e-05,2]
[394955847,1764204638195,-1200.0,8.502e-05,2]
[394955848,1764204638204,-278.62431725,8.503e-05,2]
[394955849,1764204638213,-634.01519936,8.503e-05,2]
[394955850,1764204638223,-500.0,8.503e-05,2]
[394955851,1764204638233,-500.0,8.503e-05,2]
[394955853,1764204638242,-500.0,8.503e-05,2]
[394955854,1764204638252,-320.5996015,8.503e-05,2]
[394955855,1764204638261,-71258.72800147,8.504e-05,2]
[394955856,1764204638273,-448145.7220495,8.504e-05,2]
[394955857,1764204638283,-313842.46548079,8.504e-05,2]
[394955858,1764204638297,-56753.08446824,8.504e-05,2]
[394955859,1764204638308,-189.82146631,8.517e-05,2]
[394955860,1764204638318,-508.35644116,8.518e-05,2]
[394955861,1764204638328,-152.0,8.604e-05,2]
[394955862,1764204638338,-152.0,8.604e-05,2]
[394955863,1764204638349,-152.0,8.604e-05,2]
[394955864,1764204638359,-152.0,8.604e-05,2]
[394955865,1764204638368,-163.0,8.7e-05,2]
[394955866,1764204638378,-163.0,8.7e-05,2]
[394955867,1764204638388,-1697.4421686,8.701e-05,2]
[394955868,1764204638398,-4171.45071567,8.77e-05,2]
[394955869,1764204638407,-341.23971693,8.907e-05,2]
[394955870,1764204638416,-194.72792767,8.907e-05,2]
[394955871,1764204638426,-250.0,8.907e-05,2]
[394955872,1764204638435,-250.0,8.907e-05,2]
[394955873,1764204638446,-250.0,8.907e-05,2]
[394955874,1764204638456,-250.0,8.907e-05,2]
[394955875,1764204638465,-2223.17963147,8.996e-05,2]
[394955876,1764204638475,-1000.0,9.031e-05,2]
[394955877,1764204638485,-1000.0,9.031e-05,2]
[394955878,1764204638495,-300.0,9.081e-05,2]
[394955879,1764204638504,-300.0,9.081e-05,2]
[394955880,1764204638514,-300.0,9.081e-05,2]
[394955881,1764204638524,-300.0,9.081e-05,2]
[394955882,1764204638533,-300.0,9.081e-05,2]
[394955883,1764204638543,-300.0,9.081e-05,2]
[394955884,1764204638553,-300.0,9.081e-05,2]
[394955885,1764204638563,-300.0,9.081e-05,2]
[394955886,1764204638574,-300.0,9.081e-05,2]
[394955887,1764204638737,-300.0,9.081e-05,2]
[394955888,1764204638748,-300.0,9.081e-05,2]
[394955889,1764204638758,-300.0,9.081e-05,2]
[394955890,1764204638767,-300.0,9.081e-05,2]
[394955891,1764204638777,-300.0,9.081e-05,2]
[394955892,1764204638787,-300.0,9.081e-05,2]
[394955893,1764204638797,-600.0,9.081e-05,2]
[394955894,1764204638807,-151.0,9.081e-05,2]
[394955895,1764204638817,-500.0,9.081e-05,2]
[394955896,1764204638827,-500.0,9.081e-05,2]
[394955897,1764204638838,-500.0,9.081e-05,2]
[394955898,1764204638847,-500.0,9.081e-05,2]
[394955899,1764204638857,-500.0,9.081e-05,2]
[394955900,1764204638867,-151.0,9.081e-05,2]
[394955901,1764204638877,-500.0,9.081e-05,2]
[394955902,1764204638887,-151.0,9.081e-05,2]
[394955903,1764204638897,-500.0,9.081e-05,2]
[394955904,1764204638907,-500.0,9.081e-05,2]
[394955905,1764204638920,-500.0,9.081e-05,2]
[394955906,1764204638940,-222.32907209,9.081e-05,2]
[394955907,1764204638950,-151.0,9.081e-05,2]
[394955908,1764204638960,-500.0,9.081e-05,2]
[394955909,1764204638970,-151.0,9.081e-05,2]
[394955910,1764204638980,-298.23484068,9.081e-05,2]
[394955911,1764204638991,-500.0,9.081e-05,2]
[394955912,1764204639002,-500.0,9.081e-05,2]
[394955913,1764204639012,-500.0,9.081e-05,2]
[394955914,1764204639023,-151.0,9.081e-05,2]
[394955915,1764204639033,-500.0,9.081e-05,2]
[394955916,1764204639044,-151.0,9.081e-05,2]
[394955917,1764204639053,-500.0,9.081e-05,2]
[394955918,1764204639063,-500.0,9.081e-05,2]
[394955919,1764204639073,-500.0,9.081e-05,2]
[394955920,1764204639084,-500.0,9.081e-05,2]
[394955921,1764204639094,-2223.17963147,9.157e-05,2]
[394955922,1764204639104,-151.0,9.218e-05,2]
[394955923,1764204639114,-500.0,9.218e-05,2]
[394955924,1764204639124,-500.0,9.218e-05,2]
[394955925,1764204639135,-500.0,9.218e-05,2]
[394955926,1764204639144,-500.0,9.218e-05,2]
[394955927,1764204639154,-500.0,9.218e-05,2]
[394955928,1764204639163,-151.0,9.218e-05,2]
[394955929,1764204639173,-500.0,9.218e-05,2]
[394955930,1764204639182,-151.0,9.218e-05,2]
[394955931,1764204639193,-500.0,9.218e-05,2]
[394955932,1764204639202,-500.0,9.218e-05,2]
[394955933,1764204639213,-500.0,9.218e-05,2]
[394955934,1764204639223,-151.0,9.218e-05,2]
[394955935,1764204639233,-500.0,9.218e-05,2]
[394955936,1764204639243,-151.0,9.218e-05,2]
[394955937,1764204639252,-500.0,9.218e-05,2]
[394955938,1764204639261,-500.0,9.218e-05,2]
[394955939,1764204639271,-500.0,9.218e-05,2]
[394955940,1764204639280,-151.0,9.218e-05,2]
[394955941,1764204639290,-500.0,9.218e-05,2]
[394955942,1764204639299,-151.0,9.218e-05,2]
[394955943,1764204639310,-500.0,9.218e-05,2]
[394955944,1764204639320,-500.0,9.218e-05,2]
[394955945,1764204639329,-500.0,9.218e-05,2]
[394955946,1764204639339,-4171.45071568,9.267e-05,2]
[394955947,1764204639348,-420.0,9.352e-05,2]
[394955948,1764204639358,-357.0,9.352e-05,2]
[394955949,1764204639367,-251.00603256,9.355e-05,2]
[394955950,1764204639377,-500.0,9.355e-05,2]
[394955951,1764204639386,-272.12421782,9.355e-05,2]
[394955952,1764204639396,-500.0,9.355e-05,2]
[394955953,1764204639406,-500.0,9.355e-05,2]
[394955954,1764204639415,-170.0,9.355e-05,2]
[394955955,1764204639424,-151.0,9.355e-05,2]
[394955956,1764204639434,-500.0,9.355e-05,2]
[394955957,1764204639443,-153.05862465,9.355e-05,2]
[394955958,1764204639453,-500.0,9.355e-05,2]
[394955959,1764204639462,-500.0,9.355e-05,2]
[394955960,1764204639472,-500.0,9.355e-05,2]
[394955961,1764204639481,-229.81398464,9.355e-05,2]
[394955962,1764204639491,-500.0,9.355e-05,2]
[394955963,1764204639501,-176.30880586,9.355e-05,2]
[394955964,1764204639510,-500.0,9.355e-05,2]
[394955965,1764204639519,-500.0,9.355e-05,2]
[394955966,1764204639528,-500.0,9.355e-05,2]
[394955967,1764204639537,-207.7996926,9.355e-05,2]
[394955968,1764204639546,-500.0,9.355e-05,2]
[394955969,1764204639556,-284.92363098,9.355e-05,2]
[394955970,1764204639565,-650.03076821,9.355e-05,2]
[394955971,1764204639574,-500.0,9.355e-05,2]
[394955972,1764204639583,-500.19756984,9.355e-05,2]
[394955973,1764204639593,-500.0,9.355e-05,2]
[394955974,1764204639602,-1000.0,9.377e-05,2]
[394955975,1764204639612,-151.96260396,9.377e-05,2]
[394955976,1764204639621,-500.0,9.492e-05,2]
[394955977,1764204639630,-572.1141262,9.492e-05,2]
[394955978,1764204639639,-296.3712558,9.492e-05,2]
[394955979,1764204639649,-151.0,9.492e-05,2]
[394955980,1764204639662,-500.0,9.492e-05,2]
[394955981,1764204639672,-500.0,9.492e-05,2]
[394955982,1764204639682,-500.0,9.492e-05,2]
[394955983,1764204639691,-500.0,9.492e-05,2]
[394955984,1764204639702,-500.0,9.492e-05,2]
[394955985,1764204639711,-500.0,9.492e-05,2]
[394955986,1764204639721,-500.0,9.492e-05,2]
[394955987,1764204639731,-294.52294913,9.492e-05,2]
[394955988,1764204639741,-166.97311734,9.492e-05,2]
[394955989,1764204639751,-1500.0,9.578e-05,2]
[394955990,1764204639760,-1500.0,9.578e-05,2]
[394955991,1764204639770,-2223.17963147,9.586e-05,2]
[394955992,1764204639780,-151.0,9.589e-05,2]
[394955993,1764204639790,-1272.9624526,9.599e-05,2]
[394955994,1764204639799,-163.0,9.6e-05,2]
[394955995,1764204639808,-164.09714561,9.6e-05,2]
[394955996,1764204639817,-151.0,9.629e-05,2]
[394955997,1764204639826,-452.0,9.629e-05,2]
[394955998,1764204639836,-500.0,9.629e-05,2]
[394955999,1764204639845,-500.0,9.629e-05,2]
[394956000,1764204639855,-500.0,9.629e-05,2]
[394956001,1764204639865,-500.0,9.629e-05,2]
[394956002,1764204639874,-500.0,9.629e-05,2]
[394956003,1764204639884,-500.0,9.629e-05,2]
[394956004,1764204639893,-500.0,9.629e-05,2]
[394956005,1764204639903,-1697.4421686,9.649e-05,2]
[394956006,1764204639912,-2223.17963147,9.65e-05,2]
[394956007,1764204639921,-1272.9624526,9.709e-05,2]
[394956008,1764204639930,-500.0,9.766e-05,2]
[394956009,1764204639940,-500.0,9.766e-05,2]
[394956010,1764204639949,-500.0,9.766e-05,2]
[394956011,1764204639959,-500.0,9.766e-05,2]
[394956012,1764204639969,-497.08023807,9.777e-05,2]
[394956013,1764204639979,-1272.9624526,9.819e-05,2]
[394956014,1764204639988,-592.67676608,9.903e-05,2]
[394956015,1764204639998,-293.6868797,9.903e-05,2]
[394956016,1764204640008,-500.0,9.903e-05,2]
[394956017,1764204640017,-500.0,9.903e-05,2]
[394956018,1764204640028,-241.76543782,9.903e-05,2]
[394956019,1764204640037,-1272.9624526,9.929e-05,2]
[394956020,1764204640047,-177.0,9.943e-05,2]
[394956021,1764204640056,-2223.17963147,9.969e-05,2]
[394956022,1764204640066,-720.0,9.989e-05,2]
[394956023,1764204640075,-284.83716158,0.0001,2]
[394956024,1764204640084,-187.78006525,0.0001,2]
[394956025,1764204640093,-1272.9624526,0.00010039,2]